fUSD/lending_fUSD_20260620
["ID","MTS","AMOUNT","RATE_DAILY","PERIOD"]
[425782275,1781888236000,-2352.31,0.00027397,10]
[425782279,1781888236000,-152.0,0.00033088,4]
[425782278,1781888236000,-4864.66841641,0.00033088,2]
[425782276,1781888236000,-263.0,0.00028571,10]
[425782277,1781888236000,-263.0,0.00029393,10]
[425782273,1781888236000,-153.49017915,0.00017733,2]
[425782274,1781888236000,-5000.0,0.00021918,2]
[425782290,1781888236000,-179.55,0.00033227,2]
[425782287,1781888236000,-2875.33062775,0.00033177,2]
[425782289,1781888236000,-15000.0,0.0003321,2]
[425782308,1781888236000,-22500.0,0.0003335,2]
[425782292,1781888236000,-10000.0,0.00033233,2]
[425782305,1781888236000,-15000.0,0.0003328,2]
[425782291,1781888236000,-10000.0,0.00033233,2]
[425782306,1781888236000,-22500.0,0.0003335,2]
[425782304,1781888236000,-15000.0,0.0003328,2]
[425782300,1781888236000,-500.0,0.00033261,25]
[425782307,1781888236000,-15000.0,0.0003335,2]
[425782303,1781888236000,-12500.0,0.00033263,2]
[425782310,1781888236000,-4921.60157354,0.0003335,2]
[425782309,1781888236000,-12500.0,0.0003335,2]
[425782301,1781888236000,-22500.0,0.00033263,2]
[425782296,1781888236000,-1360.0,0.0003324,2]
[425782295,1781888236000,-383.0,0.0003324,2]
[425782299,1781888236000,-778.0,0.0003324,2]
[425782297,1781888236000,-150.0,0.0003324,2]
[425782298,1781888236000,-150.0,0.0003324,2]
[425782293,1781888236000,-3560.0,0.0003324,2]
[425782302,1781888236000,-22500.0,0.00033263,2]
[425782294,1781888236000,-1276.0,0.0003324,2]
[425782327,1781888277000,-800.0,0.000335,2]
[425782329,1781888277000,-22500.0,0.00033525,2]
[425782330,1781888277000,-12500.0,0.00033525,2]
[425782328,1781888277000,-22500.0,0.00033525,2]
[425782334,1781888277000,-22500.0,0.00033613,2]
[425782333,1781888277000,-22500.0,0.00033613,2]
[425782336,1781888277000,-476.65938,0.0003362,2]
[425782335,1781888277000,-12500.0,0.00033613,2]
[425782332,1781888277000,-15000.0,0.0003356,2]
[425782337,1781888277000,-5037.3239473,0.00033623,2]
[425782331,1781888277000,-2687.0,0.00033528,10]
[425782324,1781888277000,-10000.0,0.00033467,2]
[425782319,1781888277000,-1404.43,0.0003342,2]
[425782325,1781888277000,-10000.0,0.00033467,2]
[425782323,1781888277000,-329.61,0.00033442,30]
[425782322,1781888277000,-12500.0,0.00033438,2]
[425782320,1781888277000,-22500.0,0.00033438,2]
[425782318,1781888277000,-15000.0,0.0003342,2]
[425782314,1781888277000,-10078.39842646,0.0003335,2]
[425782315,1781888277000,-4923.23,0.00033361,2]
[425782316,1781888277000,-1896.57972958,0.00033397,2]
[425782321,1781888277000,-22500.0,0.00033438,2]
[425782317,1781888277000,-571.11871904,0.00033412,3]
[425782338,1781888277000,-5000.0,0.00033623,2]
[425782326,1781888277000,-15000.0,0.0003349,2]
[425782339,1781888277000,-5000.0,0.00033623,2]
[425782356,1781888277000,-341.85118697,0.0003376,2]
[425782344,1781888277000,-301.02759846,0.00033665,28]
[425782340,1781888277000,-5000.0,0.00033623,2]
[425782366,1781888277000,-22500.0,0.00033788,2]
[425782365,1781888277000,-9522.55,0.00033788,2]
[425782360,1781888277000,-183.95686686,0.00033761,2]
[425782364,1781888277000,-322.82298012,0.0003377,2]
[425782363,1781888277000,-15000.0,0.0003377,2]
[425782362,1781888277000,-328.84214907,0.00033762,2]
[425782359,1781888277000,-336.7495818,0.00033761,2]
[425782353,1781888277000,-22500.0,0.000337,2]
[425782354,1781888277000,-12500.0,0.000337,2]
[425782351,1781888277000,-15000.0,0.000337,2]
[425782357,1781888277000,-365.63002487,0.00033761,2]
[425782361,1781888277000,-358.68192727,0.00033761,2]
[425782352,1781888277000,-10000.0,0.000337,2]
[425782350,1781888277000,-22500.0,0.000337,2]
[425782349,1781888277000,-76069.96228563,0.0003367,2]
[425782347,1781888277000,-180.193781,0.0003367,7]
[425782343,1781888277000,-506.0,0.00033636,15]
[425782358,1781888277000,-361.50781595,0.00033761,2]
[425782348,1781888277000,-180.193781,0.0003367,7]
[425782346,1781888277000,-180.193781,0.0003367,7]
[425782345,1781888277000,-180.193781,0.0003367,7]
[425782342,1781888277000,-15000.0,0.0003363,2]
[425782341,1781888277000,-5000.0,0.00033623,2]
[425782355,1781888277000,-1817.92798677,0.00033732,2]
[425782406,1781888278000,-9999.98,0.00033933,2]
[425782403,1781888278000,-1000.0,0.00033925,2]
[425782402,1781888278000,-1000.0,0.00033925,2]
[425782404,1781888278000,-1433.22,0.00033925,2]
[425782389,1781888278000,-7796.57697689,0.000339,2]
[425782399,1781888278000,-15000.0,0.0003391,2]
[425782400,1781888278000,-551.19,0.00033912,2]
[425782398,1781888278000,-7796.57697689,0.000339,2]
[425782394,1781888278000,-7796.57697689,0.000339,2]
[425782407,1781888278000,-310.0,0.00033962,30]
[425782401,1781888278000,-329.61,0.00033912,2]
[425782405,1781888278000,-1775.43,0.00033925,2]
[425782419,1781888278000,-300.0,0.00034105,2]
[425782409,1781888278000,-12500.0,0.00033963,2]
[425782410,1781888278000,-14999.97,0.0003398,2]
[425782412,1781888278000,-800.0,0.00034,7]
[425782411,1781888278000,-2000.0,0.00034,7]
[425782413,1781888278000,-22500.0,0.0003405,2]
[425782416,1781888278000,-389.51983088,0.00034105,2]
[425782415,1781888278000,-300.0,0.00034105,2]
[425782414,1781888278000,-12500.0,0.0003405,2]
[425782418,1781888278000,-313.39602753,0.00034105,2]
[425782417,1781888278000,-513.37925185,0.00034105,2]
[425782396,1781888278000,-7796.57697689,0.000339,2]
[425782420,1781888278000,-300.0,0.00034105,2]
[425782408,1781888278000,-22500.0,0.00033963,2]
[425782393,1781888278000,-7796.57697689,0.000339,2]
[425782380,1781888278000,-7796.57697689,0.000339,2]
[425782397,1781888278000,-7796.57697689,0.000339,2]
[425782422,1781888278000,-313.56576022,0.0003413,2]
[425782368,1781888278000,-200.0,0.00033806,10]
[425782373,1781888278000,-194.64603169,0.00033861,2]
[425782374,1781888278000,-22500.0,0.00033875,2]
[425782367,1781888278000,-12500.0,0.00033788,2]
[425782369,1781888278000,-185.13,0.00033831,2]
[425782370,1781888278000,-396.25,0.00033835,2]
[425782375,1781888278000,-12500.0,0.00033875,2]
[425782371,1781888278000,-15000.0,0.0003384,2]
[425782372,1781888278000,-11944.1525214,0.00033861,2]
[425782376,1781888278000,-144526.78551302,0.000339,2]
[425782377,1781888278000,-2157.17464086,0.000339,2]
[425782378,1781888278000,-9400.0,0.000339,12]
[425782381,1781888278000,-7796.57697689,0.000339,2]
[425782379,1781888278000,-7796.57697693,0.000339,2]
[425782383,1781888278000,-7796.57697689,0.000339,2]
[425782386,1781888278000,-7796.57697689,0.000339,2]
[425782385,1781888278000,-7796.57697689,0.000339,2]
[425782384,1781888278000,-7796.57697689,0.000339,2]
[425782382,1781888278000,-7796.57697689,0.000339,2]
[425782387,1781888278000,-7796.57697689,0.000339,2]
[425782388,1781888278000,-7796.57697689,0.000339,2]
[425782392,1781888278000,-7796.57697689,0.000339,2]
[425782391,1781888278000,-7796.57697689,0.000339,2]
[425782395,1781888278000,-7796.57697689,0.000339,2]
[425782390,1781888278000,-7796.57697689,0.000339,2]
[425782421,1781888278000,-300.0,0.00034105,2]
[425782427,1781888278000,-168.57,0.00034213,2]
[425782423,1781888278000,-250.0,0.00034137,7]
[425782454,1781888278000,-427.08799397,0.00034614,2]
[425782456,1781888278000,-208.4809974,0.00034614,2]
[425782458,1781888278000,-163.64722725,0.00034614,2]
[425782457,1781888278000,-512.77678045,0.00034614,2]
[425782459,1781888278000,-229.96638618,0.00034614,2]
[425782466,1781888278000,-367.91373372,0.00034614,2]
[425782465,1781888278000,-505.12437269,0.00034614,2]
[425782463,1781888278000,-221.79495595,0.00034614,2]
[425782467,1781888278000,-538.02289091,0.00034614,2]
[425782460,1781888278000,-269.16301679,0.00034614,2]
[425782461,1781888278000,-548.44503731,0.00034614,2]
[425782462,1781888278000,-542.26172392,0.00034614,2]
[425782464,1781888278000,-242.50407671,0.00034614,2]
[425782468,1781888278000,-197.49657506,0.00034614,2]
[425782469,1781888278000,-193.25869994,0.00034614,2]
[425782470,1781888278000,-223.15115677,0.00034614,2]
[425782471,1781888278000,-493.26322361,0.00034615,2]
[425782472,1781888278000,-169.30409629,0.00034624,2]
[425782475,1781888278000,-643.98,0.0003464,2]
[425782474,1781888278000,-184.88,0.0003464,2]
[425782477,1781888278000,-513.0,0.00034649,2]
[425782476,1781888278000,-1896.57972958,0.00034648,2]
[425782473,1781888278000,-484.23447018,0.00034624,2]
[425782479,1781888278000,-185.17,0.00034649,2]
[425782424,1781888278000,-22500.0,0.00034138,2]
[425782453,1781888278000,-161.52286233,0.00034614,2]
[425782455,1781888278000,-238.11218963,0.00034614,2]
[425782478,1781888278000,-151.0,0.00034649,2]
[425782448,1781888278000,-22500.0,0.00034488,2]
[425782449,1781888278000,-22500.0,0.00034575,2]
[425782428,1781888278000,-22500.0,0.00034225,2]
[425782429,1781888278000,-500.0,0.00034258,27]
[425782426,1781888278000,-367.67341826,0.00034192,2]
[425782425,1781888278000,-12499.97,0.00034138,2]
[425782431,1781888278000,-2255.3369,0.00034358,2]
[425782480,1781888278000,-573.61,0.00034649,2]
[425782432,1781888278000,-2304.0604,0.00034358,2]
[425782434,1781888278000,-22500.0,0.000344,2]
[425782436,1781888278000,-150.0,0.00034453,2]
[425782433,1781888278000,-329.61,0.00034383,7]
[425782437,1781888278000,-150.0,0.00034453,2]
[425782435,1781888278000,-215.14030586,0.00034403,2]
[425782430,1781888278000,-22500.0,0.00034313,2]
[425782440,1781888278000,-1000.0,0.00034475,2]
[425782450,1781888278000,-470.0,0.000346,7]
[425782447,1781888278000,-2304.0604,0.00034481,2]
[425782452,1781888278000,-2304.0604,0.00034603,2]
[425782438,1781888278000,-500.0,0.00034453,2]
[425782451,1781888278000,-3545.0,0.000346,7]
[425782446,1781888278000,-1663.15,0.00034475,2]
[425782445,1781888278000,-1000.0,0.00034475,2]
[425782443,1781888278000,-1000.0,0.00034475,2]
[425782441,1781888278000,-1000.0,0.00034475,2]
[425782439,1781888278000,-500.0,0.00034453,2]
[425782442,1781888278000,-1000.0,0.00034475,2]
[425782444,1781888278000,-1149.83,0.00034475,2]
[425782517,1781888279000,-2304.0604,0.00035094,2]
[425782515,1781888279000,-2255.3369,0.00035045,2]
[425782516,1781888279000,-150.0,0.00035076,2]
[425782518,1781888279000,-438.23756001,0.00035098,2]
[425782509,1781888279000,-2304.0604,0.00034972,2]
[425782513,1781888279000,-188.98529415,0.00035,2]
[425782512,1781888279000,-506.0,0.00035,16]
[425782511,1781888279000,-542.3,0.00035,7]
[425782508,1781888279000,-11944.1525214,0.00034963,2]
[425782514,1781888279000,-167.45969096,0.00035,2]
[425782519,1781888279000,-542.3,0.000351,7]
[425782527,1781888279000,-494.585345,0.00035152,2]
[425782521,1781888279000,-252.11878881,0.00035109,2]
[425782522,1781888279000,-250.0,0.00035109,2]
[425782525,1781888279000,-390.0,0.00035123,2]
[425782528,1781888279000,-1401.44503889,0.00035165,28]
[425782524,1781888279000,-250.0,0.00035109,2]
[425782526,1781888279000,-3583.0,0.0003514,10]
[425782523,1781888279000,-250.0,0.00035109,2]
[425782530,1781888279000,-392.54783676,0.00035182,2]
[425782531,1781888279000,-160.99515594,0.00035182,2]
[425782510,1781888279000,-2870.72913096,0.00034978,7]
[425782529,1781888279000,-411.32990262,0.00035182,2]
[425782520,1781888279000,-2000.0,0.000351,7]
[425782505,1781888279000,-1500.0,0.000349,7]
[425782493,1781888279000,-151.0,0.0003478,7]
[425782507,1781888279000,-194.64603168,0.00034963,2]
[425782532,1781888279000,-213.54399698,0.00035182,2]
[425782481,1781888279000,-482.11,0.00034649,2]
[425782482,1781888279000,-11208.62147442,0.0003465,2]
[425782484,1781888279000,-1817.92798677,0.00034652,2]
[425782483,1781888279000,-573.56,0.00034651,2]
[425782488,1781888279000,-406.0,0.00034686,2]
[425782486,1781888279000,-794.41659506,0.00034665,28]
[425782487,1781888279000,-472.06,0.0003468,2]
[425782485,1781888279000,-22500.0,0.00034663,2]
[425782490,1781888279000,-397.0,0.00034717,2]
[425782489,1781888279000,-2255.3369,0.00034702,2]
[425782506,1781888279000,-310.0,0.00034962,30]
[425782492,1781888279000,-22500.0,0.0003475,2]
[425782495,1781888279000,-180.193781,0.0003478,7]
[425782494,1781888279000,-180.193781,0.0003478,7]
[425782496,1781888279000,-180.193781,0.0003478,7]
[425782498,1781888279000,-1500.0,0.00034795,2]
[425782497,1781888279000,-180.193781,0.0003478,7]
[425782499,1781888279000,-542.3,0.000348,7]
[425782500,1781888279000,-1924.0,0.000348,2]
[425782501,1781888279000,-15649.92,0.00034838,2]
[425782502,1781888279000,-2304.0604,0.00034849,2]
[425782504,1781888279000,-542.3,0.000349,7]
[425782503,1781888279000,-329.61,0.00034853,30]
[425782491,1781888279000,-2304.0604,0.00034726,2]
[425782534,1781888279000,-163.2192773,0.00035182,2]
[425782535,1781888279000,-169.481741,0.00035182,2]
[425782574,1781888279000,-500.0,0.00035286,29]
[425782563,1781888279000,-657.68429814,0.00035184,2]
[425782565,1781888279000,-156.35884746,0.00035193,2]
[425782566,1781888279000,-257.8316,0.00035193,2]
[425782569,1781888279000,-175.9,0.00035199,2]
[425782568,1781888279000,-232.35050013,0.00035199,2]
[425782572,1781888279000,-367.67341826,0.00035233,2]
[425782570,1781888279000,-383.0,0.0003521,2]
[425782571,1781888279000,-2304.0604,0.00035217,2]
[425782567,1781888279000,-645.64596024,0.00035193,2]
[425782575,1781888279000,-424.0,0.0003531,2]
[425782576,1781888279000,-329.61,0.00035323,2]
[425782578,1781888279000,-200.0,0.0003533,10]
[425782579,1781888279000,-2304.0604,0.0003534,2]
[425782580,1781888279000,-506.0,0.00035356,2]
[425782581,1781888279000,-2255.3369,0.00035389,2]
[425782577,1781888279000,-441.72672628,0.00035324,2]
[425782586,1781888279000,-644.26,0.00035458,2]
[425782582,1781888279000,-472.06,0.00035416,2]
[425782584,1781888279000,-80000.0,0.00035455,120]
[425782583,1781888279000,-33709.9396649,0.00035443,2]
[425782585,1781888279000,-643.64,0.00035458,2]
[425782587,1781888279000,-396.25,0.00035458,2]
[425782533,1781888279000,-259.76537493,0.00035182,2]
[425782564,1781888279000,-338.60819258,0.00035193,2]
[425782562,1781888279000,-186.33494718,0.00035183,2]
[425782573,1781888279000,-390.0,0.00035278,2]
[425782561,1781888279000,-446.30231354,0.00035183,2]
[425782536,1781888279000,-416.96199479,0.00035182,2]
[425782538,1781888279000,-327.2944545,0.00035182,2]
[425782537,1781888279000,-683.70237394,0.00035182,2]
[425782539,1781888279000,-459.93277237,0.00035183,2]
[425782542,1781888279000,-538.32603359,0.00035183,2]
[425782541,1781888279000,-179.47850249,0.00035183,2]
[425782540,1781888279000,-201.56185814,0.00035183,2]
[425782543,1781888279000,-163.05339563,0.00035183,2]
[425782560,1781888279000,-394.99315012,0.00035183,2]
[425782553,1781888279000,-207.68511551,0.00035183,2]
[425782547,1781888279000,-156.47983391,0.00035183,2]
[425782549,1781888279000,-731.26004974,0.00035183,2]
[425782548,1781888279000,-151.06161387,0.00035183,2]
[425782545,1781888279000,-166.30268513,0.00035183,2]
[425782555,1781888279000,-673.49916359,0.00035183,2]
[425782546,1781888279000,-151.22303948,0.00035183,2]
[425782550,1781888279000,-723.0156319,0.00035183,2]
[425782552,1781888279000,-485.00815342,0.00035183,2]
[425782551,1781888279000,-443.5899119,0.00035183,2]
[425782554,1781888279000,-376.08395615,0.00035183,2]
[425782556,1781888279000,-551.87060058,0.00035183,2]
[425782558,1781888279000,-159.20483253,0.00035183,2]
[425782559,1781888279000,-476.22437927,0.00035183,2]
[425782557,1781888279000,-717.36385454,0.00035183,2]
[425782544,1781888279000,-437.41326048,0.00035183,2]
[425782621,1781888280000,-482.37,0.00035473,2]
[425782625,1781888280000,-305.4,0.00035475,2]
[425782628,1781888280000,-1726.89609975,0.00035516,2]
[425782624,1781888280000,-643.8,0.00035473,2]
[425782623,1781888280000,-573.56,0.00035473,2]
[425782617,1781888280000,-644.26,0.00035473,2]
[425782620,1781888280000,-185.17,0.00035473,2]
[425782611,1781888280000,-573.56,0.00035471,2]
[425782618,1781888280000,-573.01,0.00035473,2]
[425782622,1781888280000,-578.31,0.00035473,2]
[425782627,1781888280000,-250.0,0.00035491,2]
[425782626,1781888280000,-279.902688,0.00035477,60]
[425782637,1781888280000,-180.193781,0.00035616,7]
[425782630,1781888280000,-2304.0604,0.00035585,2]
[425782632,1781888280000,-11800.0,0.000356,12]
[425782631,1781888280000,-215.26,0.000356,2]
[425782634,1781888280000,-500.0,0.00035616,14]
[425782638,1781888280000,-180.193781,0.00035616,7]
[425782640,1781888280000,-180.193781,0.00035616,7]
[425782639,1781888280000,-180.193781,0.00035616,7]
[425782636,1781888280000,-180.193781,0.00035616,7]
[425782635,1781888280000,-500.0,0.00035616,2]
[425782633,1781888280000,-1260.61237222,0.00035616,2]
[425782615,1781888280000,-396.23,0.00035473,2]
[425782629,1781888280000,-1817.92798677,0.00035571,2]
[425782610,1781888280000,-573.56,0.00035471,2]
[425782588,1781888280000,-396.26,0.00035458,2]
[425782614,1781888280000,-185.19,0.00035473,2]
[425782589,1781888280000,-482.34,0.0003546,2]
[425782591,1781888280000,-185.17,0.00035467,2]
[425782592,1781888280000,-482.26,0.00035467,2]
[425782594,1781888280000,-573.29,0.00035467,2]
[425782590,1781888280000,-2304.0604,0.00035462,2]
[425782593,1781888280000,-573.42,0.00035467,2]
[425782595,1781888280000,-185.19,0.00035467,2]
[425782597,1781888280000,-573.56,0.00035467,2]
[425782596,1781888280000,-573.61,0.00035467,2]
[425782598,1781888280000,-184.25,0.00035467,2]
[425782600,1781888280000,-185.05,0.00035467,2]
[425782616,1781888280000,-396.25,0.00035473,2]
[425782606,1781888280000,-185.19,0.00035467,2]
[425782599,1781888280000,-185.17,0.00035467,2]
[425782604,1781888280000,-644.26,0.00035467,2]
[425782603,1781888280000,-185.13,0.00035467,2]
[425782607,1781888280000,-644.29,0.00035467,2]
[425782601,1781888280000,-573.57,0.00035467,2]
[425782605,1781888280000,-396.23,0.00035467,2]
[425782608,1781888280000,-396.26,0.00035467,2]
[425782609,1781888280000,-644.26,0.00035471,2]
[425782613,1781888280000,-573.61,0.00035473,2]
[425782612,1781888280000,-185.17,0.00035473,2]
[425782619,1781888280000,-573.56,0.00035473,2]
[425782602,1781888280000,-396.25,0.00035467,2]
[425782642,1781888280000,-180.193781,0.00035616,7]
[425782641,1781888280000,-180.193781,0.00035616,7]
[425782696,1781888280000,-1108.92,0.00035616,30]
[425782671,1781888280000,-500.0,0.00035616,30]
[425782670,1781888280000,-500.0,0.00035616,30]
[425782675,1781888280000,-500.0,0.00035616,30]
[425782676,1781888280000,-764.17,0.00035616,30]
[425782679,1781888280000,-1885.01,0.00035616,30]
[425782678,1781888280000,-4625.81,0.00035616,30]
[425782680,1781888280000,-500.0,0.00035616,30]
[425782677,1781888280000,-500.0,0.00035616,30]
[425782682,1781888280000,-500.0,0.00035616,30]
[425782681,1781888280000,-3037.54,0.00035616,30]
[425782683,1781888280000,-500.0,0.00035616,30]
[425782673,1781888280000,-1286.36,0.00035616,30]
[425782685,1781888280000,-500.0,0.00035616,30]
[425782686,1781888280000,-1085.5,0.00035616,30]
[425782687,1781888280000,-500.0,0.00035616,30]
[425782689,1781888280000,-500.0,0.00035616,30]
[425782695,1781888280000,-500.0,0.00035616,30]
[425782690,1781888280000,-500.0,0.00035616,30]
[425782697,1781888280000,-500.0,0.00035616,30]
[425782692,1781888280000,-500.0,0.00035616,30]
[425782688,1781888280000,-552.68,0.00035616,30]
[425782693,1781888280000,-770.28,0.00035616,30]
[425782691,1781888280000,-914.03,0.00035616,30]
[425782694,1781888280000,-500.0,0.00035616,30]
[425782684,1781888280000,-924.86,0.00035616,30]
[425782665,1781888280000,-500.0,0.00035616,120]
[425782647,1781888280000,-578.20216457,0.00035616,2]
[425782669,1781888280000,-500.0,0.00035616,30]
[425782643,1781888280000,-180.193781,0.00035616,7]
[425782645,1781888280000,-500.0,0.00035616,14]
[425782644,1781888280000,-557.18763501,0.00035616,12]
[425782646,1781888280000,-507.45,0.00035616,2]
[425782648,1781888280000,-445.774,0.00035616,7]
[425782650,1781888280000,-445.774,0.00035616,7]
[425782649,1781888280000,-445.774,0.00035616,7]
[425782668,1781888280000,-500.0,0.00035616,30]
[425782653,1781888280000,-500.0,0.00035616,2]
[425782652,1781888280000,-500.0,0.00035616,14]
[425782659,1781888280000,-1877.0,0.00035616,2]
[425782657,1781888280000,-5085.36,0.00035616,30]
[425782651,1781888280000,-445.774,0.00035616,7]
[425782662,1781888280000,-1257.63,0.00035616,30]
[425782654,1781888280000,-2000.0,0.00035616,4]
[425782674,1781888280000,-500.0,0.00035616,30]
[425782667,1781888280000,-500.0,0.00035616,30]
[425782666,1781888280000,-500.0,0.00035616,30]
[425782664,1781888280000,-8051.7,0.00035616,30]
[425782672,1781888280000,-500.0,0.00035616,30]
[425782661,1781888280000,-500.0,0.00035616,30]
[425782655,1781888280000,-151.0,0.00035616,7]
[425782660,1781888280000,-500.0,0.00035616,30]
[425782658,1781888280000,-500.0,0.00035616,30]
[425782656,1781888280000,-151.0,0.00035616,7]
[425782663,1781888280000,-5781.35,0.00035616,30]
[425782740,1781888281000,-151.0,0.00035616,7]
[425782737,1781888281000,-151.0,0.00035616,7]
[425782734,1781888281000,-151.0,0.00035616,10]
[425782732,1781888281000,-500.0,0.00035616,30]
[425782726,1781888281000,-500.0,0.00035616,30]
[425782728,1781888281000,-5832.45,0.00035616,30]
[425782731,1781888281000,-500.0,0.00035616,30]
[425782725,1781888281000,-500.0,0.00035616,2]
[425782727,1781888281000,-1830.44,0.00035616,30]
[425782730,1781888281000,-500.0,0.00035616,30]
[425782736,1781888281000,-151.0,0.00035616,10]
[425782751,1781888281000,-151.0,0.00035616,7]
[425782739,1781888281000,-151.0,0.00035616,7]
[425782741,1781888281000,-151.0,0.00035616,7]
[425782743,1781888281000,-151.0,0.00035616,7]
[425782744,1781888281000,-151.0,0.00035616,7]
[425782742,1781888281000,-151.0,0.00035616,7]
[425782735,1781888281000,-151.0,0.00035616,10]
[425782746,1781888281000,-151.0,0.00035616,7]
[425782745,1781888281000,-151.0,0.00035616,7]
[425782747,1781888281000,-151.0,0.00035616,7]
[425782750,1781888281000,-151.0,0.00035616,7]
[425782755,1781888281000,-311.93,0.00035616,2]
[425782729,1781888281000,-500.0,0.00035616,2]
[425782738,1781888281000,-151.0,0.00035616,7]
[425782724,1781888281000,-1000.78,0.00035616,30]
[425782711,1781888281000,-500.0,0.00035616,30]
[425782723,1781888281000,-500.0,0.00035616,30]
[425782748,1781888281000,-151.0,0.00035616,7]
[425782709,1781888281000,-850.26,0.00035616,30]
[425782699,1781888281000,-710.65,0.00035616,30]
[425782698,1781888281000,-500.0,0.00035616,30]
[425782700,1781888281000,-500.0,0.00035616,30]
[425782701,1781888281000,-3165.0,0.00035616,30]
[425782703,1781888281000,-1720.71,0.00035616,30]
[425782702,1781888281000,-500.0,0.00035616,16]
[425782704,1781888281000,-1936.23,0.00035616,30]
[425782706,1781888281000,-500.0,0.00035616,30]
[425782707,1781888281000,-500.0,0.00035616,30]
[425782708,1781888281000,-917.69,0.00035616,30]
[425782705,1781888281000,-500.0,0.00035616,30]
[425782710,1781888281000,-500.0,0.00035616,30]
[425782713,1781888281000,-651.48,0.00035616,30]
[425782715,1781888281000,-500.0,0.00035616,30]
[425782712,1781888281000,-500.0,0.00035616,2]
[425782719,1781888281000,-500.0,0.00035616,30]
[425782714,1781888281000,-1131.94,0.00035616,30]
[425782716,1781888281000,-1252.38,0.00035616,30]
[425782717,1781888281000,-500.0,0.00035616,30]
[425782718,1781888281000,-500.0,0.00035616,30]
[425782721,1781888281000,-500.0,0.00035616,30]
[425782720,1781888281000,-7007.89447451,0.00035616,2]
[425782733,1781888281000,-500.0,0.00035616,30]
[425782722,1781888281000,-500.0,0.00035616,30]
[425782749,1781888281000,-151.0,0.00035616,7]
[425782760,1781888281000,-151.0,0.00035616,30]
[425782752,1781888281000,-155.482659,0.00035616,7]
[425782782,1781888281000,-3432.23714195,0.00035626,30]
[425782780,1781888281000,-3432.23714195,0.00035626,30]
[425782784,1781888281000,-3432.23714195,0.00035626,30]
[425782781,1781888281000,-3432.23714195,0.00035626,30]
[425782779,1781888281000,-3432.23714195,0.00035626,30]
[425782790,1781888281000,-3381.43907345,0.00035626,30]
[425782789,1781888281000,-3381.43907345,0.00035626,30]
[425782794,1781888281000,-3381.43907345,0.00035626,30]
[425782796,1781888281000,-3381.43907345,0.00035626,30]
[425782753,1781888281000,-151.0,0.00035616,7]
[425782791,1781888281000,-3381.43907345,0.00035626,30]
[425782799,1781888281000,-3381.43907345,0.00035626,30]
[425782793,1781888281000,-3381.43907345,0.00035626,30]
[425782798,1781888281000,-3381.43907345,0.00035626,30]
[425782795,1781888281000,-3381.43907345,0.00035626,30]
[425782792,1781888281000,-3381.43907345,0.00035626,30]
[425782801,1781888281000,-3381.43907345,0.00035626,30]
[425782800,1781888281000,-3381.43907345,0.00035626,30]
[425782806,1781888281000,-500.0,0.00035671,2]
[425782803,1781888281000,-3381.43907345,0.00035626,30]
[425782802,1781888281000,-3381.43907345,0.00035626,30]
[425782804,1781888281000,-306.03288546,0.00035626,2]
[425782805,1781888281000,-500.0,0.00035671,14]
[425782807,1781888281000,-151.0,0.00035671,10]
[425782808,1781888281000,-500.0,0.00035671,14]
[425782783,1781888281000,-3432.23714195,0.00035626,30]
[425782788,1781888281000,-3381.43907345,0.00035626,30]
[425782797,1781888281000,-3381.43907345,0.00035626,30]
[425782787,1781888281000,-3381.43907345,0.00035626,30]